bitfinex/quotes_ETHUSD_20250821
["timestamp","ask_amount","ask_price","bid_price","bid_amount"]
[1755810114073,11.2198,4239.4,4239.3,0.004]
[1755810114963,6.4288,4239.4,4239.3,0.004]
[1755810115453,41.2208,4239.4,4239.3,0.004]
[1755810115777,41.2208,4239.4,4238.8,0.02]
[1755810115778,43.94099192,4239.4,4238.8,0.02]
[1755810116027,14.33184433,4238.9,4238.8,0.02]
[1755810116179,6.2573,4238.9,4238.8,0.02]
[1755810116354,6.7088,4238.9,4238.8,0.02]
[1755810116558,36.7088,4238.9,4238.8,0.02]
[1755810116783,39.07093963,4238.9,4238.8,0.02]
[1755810117171,39.07093963,4238.9,4237.2,3.0]
[1755810117375,39.07093963,4238.9,4233.0,1.11873167]
[1755810117376,13.67184433,4238.3,4236.8,0.02]
[1755810117580,4.14,4238.2,4236.8,0.02]
[1755810117758,1.814,4238.1,4236.8,0.02]
[1755810118087,0.8156228,4238.0,4236.8,0.02]
[1755810118290,4.14,4237.9,4236.8,0.02]
[1755810118869,0.4515,4237.8,4236.8,0.02]
[1755810120506,0.8156228,4238.0,4236.8,0.02]
[1755810120688,4.138,4237.9,4237.0,3.0]
[1755810120889,4.138,4237.9,4237.1,0.02360104]
[1755810121109,4.138,4237.9,4237.5,2.35987725]
[1755810121414,4.138,4237.9,4237.8,0.2966]
[1755810121637,4.138,4237.9,4237.8,5.65631494]
[1755810121928,4.138,4237.9,4237.8,6.12921494]
[1755810124405,0.4515,4238.1,4236.8,0.02]
[1755810124604,0.4515,4238.1,4236.9,2.36016392]
[1755810124818,0.4515,4238.1,4236.8,0.02]
[1755810125007,0.50011,4238.0,4236.9,2.36021566]
[1755810125208,1.815,4237.9,4236.8,0.02]
[1755810125413,4.135,4237.8,4236.8,0.02]
[1755810125589,4.5865,4237.8,4236.8,0.02]
[1755810126088,4.5865,4237.8,4236.9,2.36020437]
[1755810126283,4.5865,4237.8,4236.8,0.02]
[1755810126284,0.690161,4237.7,4236.8,0.02]
[1755810126719,0.690161,4237.7,4237.0,2.36015696]
[1755810126936,1.815,4237.9,4236.9,0.02360216]
[1755810127088,1.815,4237.9,4236.8,0.02]
[1755810127089,4.135,4237.6,4236.8,0.02]
[1755810127884,4.135,4237.6,4236.8,2.38021673]
[1755810128088,0.2921,4236.9,4236.8,0.02]
[1755810128288,6.2511,4236.9,4236.8,0.02]
[1755810128545,7.31351,4236.9,4236.8,0.02]
[1755810129492,5.963,4236.9,4236.8,0.02]
[1755810130093,5.962,4236.9,4236.8,0.02]
[1755810130830,1.29303629,4238.7,4236.9,3.0]
[1755810130831,1.815,4237.7,4236.9,3.0]
[1755810131129,4.148,4237.8,4237.7,5.35977063]
[1755810131333,4.148,4237.8,4237.7,3.11697063]
[1755810131636,1.816,4238.3,4237.7,3.2952]
[1755810131811,4.148,4238.0,4237.7,2.65494319]
[1755810132003,4.148,4238.0,4237.9,2.35965926]
[1755810132198,4.148,4238.0,4237.9,5.65485926]
[1755810132400,1.816,4238.3,4238.2,2.35949223]
[1755810132595,1.816,4238.3,4238.2,5.65469223]
[1755810132801,1.816,4238.9,4238.7,2.3592139]
[1755810133028,5.964,4238.9,4238.7,5.6544139]
[1755810133623,4.148,4238.9,4238.7,6.1164139]
[1755810133940,4.147,4239.3,4238.7,6.7764139]
[1755810134318,1.816,4239.5,4238.7,6.7764139]
[1755810134319,4.8954,4238.8,4238.7,3.0]
[1755810134518,6.11003833,4238.8,4238.7,3.0]
[1755810134710,6.12903833,4238.8,4238.7,3.0]
[1755810136067,36.76207462,4238.8,4238.7,3.0]
[1755810137160,36.76207462,4238.8,4236.8,0.02]
[1755810137161,0.66,4238.7,4236.8,0.02]
[1755810137359,14.3040517,4238.2,4236.8,0.02]
[1755810137529,5.9616057,4238.1,4236.8,0.02]
[1755810137730,0.2921,4236.9,4236.8,0.02]
[1755810137959,6.2741,4236.9,4236.8,0.02]
[1755810138144,6.90151,4236.9,4236.8,0.02]
[1755810138349,7.33881,4236.9,4236.8,0.02]
[1755810141440,7.84484106,4236.9,4236.8,0.02]
[1755810141645,8.06452499,4236.9,4236.8,0.02]
[1755810141979,7.62722499,4236.9,4236.8,0.02]
[1755810143179,6.69671499,4236.9,4236.8,0.02]
[1755810143481,13.10111499,4236.9,4236.8,0.02]
[1755810143687,43.89293179,4236.9,4236.8,0.02]
[1755810143847,43.59098408,4236.9,4236.8,0.02]
[1755810144047,9.07793179,4236.9,4236.8,0.02]
[1755810144259,11.86866262,4236.9,4236.8,0.02]
[1755810144486,12.37461194,4236.9,4236.8,0.02]
[1755810144655,5.974,4236.9,4236.8,3.3152]
[1755810145060,4.158,4236.9,4236.8,6.16107461]
[1755810145261,1.816,4238.2,4236.8,3.7772]
[1755810145449,0.2921,4236.9,4236.8,0.02]
[1755810145784,37.75730932,4236.9,4236.8,0.02]
[1755810146095,38.19460932,4236.9,4236.8,0.02]
[1755810146249,38.19452669,4236.9,4236.8,0.02]
[1755810147662,38.19452669,4236.9,4236.8,0.024]
[1755810147862,40.55666632,4236.9,4236.8,0.024]
[1755810148095,40.55666632,4236.9,4236.3,0.004]
[1755810148096,0.66,4236.8,4236.3,0.004]
[1755810148267,13.96394433,4236.4,4236.3,0.004]
[1755810148464,18.85491555,4236.4,4236.3,0.004]
[1755810148661,20.93161826,4236.4,4236.3,0.004]
[1755810148865,21.36891826,4236.4,4236.3,0.004]
[1755810150309,21.14914767,4236.4,4236.3,0.004]
[1755810150530,21.36845968,4236.4,4236.3,0.004]
[1755810151600,51.36845968,4236.4,4236.3,0.004]
[1755810153028,52.00052176,4236.4,4236.3,0.004]
[1755810153181,51.36845968,4236.4,4236.3,0.004]
[1755810153522,51.36845968,4236.4,4234.8,0.06]
[1755810153523,30.66,4236.3,4234.8,0.06]
[1755810153688,13.96394433,4234.9,4234.8,0.06]
[1755810153880,56.34745697,4234.9,4234.8,0.06]
[1755810154085,57.44475697,4234.9,4234.8,0.06]
[1755810154311,57.44475697,4234.9,4233.8,0.02]
[1755810154312,56.78475697,4234.9,4233.8,0.02]
[1755810154524,33.52495227,4234.8,4233.8,0.02]
[1755810154723,0.72551264,4234.7,4233.8,0.02]
[1755810154931,4.165,4234.6,4233.8,0.02]
[1755810155510,7.493,4234.9,4234.5,0.2952]
[1755810155847,4.167,4234.8,4234.6,0.462]
[1755810155995,4.167,4234.8,4233.9,0.462]
[1755810155996,5.333,4234.8,4233.9,0.462]
[1755810156491,5.333,4234.8,4233.8,0.02]
[1755810158037,1.166,4234.8,4233.8,0.02]
[1755810158238,4.165,4234.7,4233.9,0.4655]
[1755810158538,4.165,4234.7,4233.8,0.02]
[1755810158938,0.4323,4234.6,4233.8,0.02]
[1755810159122,4.166,4234.5,4233.8,0.02]
[1755810159499,7.493,4234.9,4233.8,2.38193693]
[1755810159716,4.165,4234.8,4233.9,0.02361888]
[1755810159925,4.165,4234.8,4234.0,0.4655]
[1755810160601,7.493,4234.9,4234.7,0.2882]
[1755810160796,4.164,4234.8,4234.0,0.4655]
[1755810161038,4.164,4234.8,4233.9,2.36184281]
[1755810161330,4.164,4234.8,4233.8,0.02]
[1755810161331,1.1657,4234.7,4233.8,0.02]
[1755810163732,4.164,4234.8,4233.9,0.4655]
[1755810164030,4.164,4234.8,4234.0,3.0]
[1755810164231,4.164,4234.8,4233.9,0.4655]
[1755810164728,4.164,4234.8,4233.8,0.024]
[1755810165136,0.4323,4234.7,4233.8,0.024]
[1755810165433,1.20893,4234.6,4233.8,0.024]
[1755810165640,4.164,4234.5,4233.8,0.024]
[1755810167906,0.4323,4234.4,4233.8,0.024]
[1755810168942,0.2854,4233.9,4233.8,0.024]
[1755810169138,6.2614,4233.9,4233.8,0.024]
[1755810169338,6.88754,4233.9,4233.8,0.024]
[1755810169641,7.31984,4233.9,4233.8,0.024]
[1755810170142,6.60214,4233.9,4233.8,0.024]
[1755810170441,7.31984,4233.9,4233.8,0.024]
[1755810173534,5.976,4233.9,4233.8,0.024]
[1755810173844,5.976,4233.9,4233.8,0.7777]
[1755810174143,5.976,4233.9,4233.8,0.3122]
[1755810174365,5.976,4233.9,4233.8,0.024]
[1755810174544,5.976,4233.9,4233.8,0.3122]
[1755810174725,5.976,4233.9,4233.8,0.7777]
[1755810174920,1.817,4235.5,4233.9,0.66]
[1755810175122,4.151,4235.4,4233.8,0.024]
[1755810175347,13.67184433,4234.7,4233.8,0.024]
[1755810175541,0.2854,4233.9,4233.8,0.024]
[1755810175821,4.4434,4233.9,4233.8,0.024]
[1755810176038,4.8757,4233.9,4233.8,0.024]
[1755810176252,5.36327,4233.9,4233.8,0.024]
[1755810178063,4.93097,4233.9,4233.8,0.024]
[1755810178218,5.36327,4233.9,4233.8,0.024]
[1755810180557,4.64557,4233.9,4233.8,0.024]
[1755810181217,4.158,4233.9,4233.8,0.3122]
[1755810181418,4.158,4233.9,4233.8,0.024]
[1755810182850,5.681,4234.2,4233.8,0.3122]
[1755810183024,4.147,4234.1,4233.8,3.7777]
[1755810183350,0.2854,4233.9,4233.8,0.3122]
[1755810183522,4.4324,4233.9,4233.8,0.024]
[1755810183723,4.8647,4233.9,4233.8,0.024]
[1755810184954,4.4324,4233.9,4233.8,0.024]
[1755810185360,4.8647,4233.9,4233.8,0.024]
[1755810185572,7.22683963,4233.9,4233.8,0.024]
[1755810186763,24.06571888,4233.9,4233.8,0.024]
[1755810187264,24.49801888,4233.9,4233.8,0.024]
[1755810188476,25.22732214,4233.9,4233.8,0.024]
[1755810189775,25.41946573,4233.9,4233.8,0.024]
[1755810190301,30.0,4233.8,4232.8,0.02]
[1755810190443,17.27117925,4233.1,4232.8,0.02]
[1755810190647,4.144,4233.0,4232.8,0.02]
[1755810190993,1.818,4232.9,4232.8,0.02]
[1755810191232,2.1234,4232.9,4232.8,0.02]
[1755810191499,2.1234,4232.9,4231.8,0.4598]
[1755810191500,30.0,4232.8,4231.8,0.02]
[1755810191646,17.27117925,4232.0,4231.8,0.02]
[1755810191840,5.968,4231.9,4231.8,0.02]
[1755810193191,6.2734,4231.9,4231.8,0.02]
[1755810193388,6.7454,4231.9,4231.8,0.02]
[1755810193683,7.7282,4231.9,4231.8,0.02]
[1755810193843,17.27117925,4230.9,4230.8,0.02]
[1755810194045,23.23717925,4230.9,4230.8,0.02]
[1755810194444,5.966,4230.9,4230.8,0.752]
[1755810195153,5.966,4230.9,4230.8,3.02]
[1755810195778,1.818,4230.9,4230.8,3.3122]
[1755810196076,5.964,4230.9,4230.8,4.08322]
[1755810196449,5.964,4230.9,4230.8,6.44683917]
[1755810196946,1.818,4231.7,4230.9,3.0]
[1755810197181,7.499,4232.3,4231.6,3.2922]
[1755810197385,7.499,4232.3,4232.0,2.36294864]
[1755810197386,4.146,4232.2,4232.0,2.36294864]
[1755810197595,4.146,4232.2,4230.8,0.35122]
[1755810197773,4.146,4232.2,4231.0,3.0]
[1755810197976,4.146,4232.2,4230.9,0.4398]
[1755810198561,7.499,4232.3,4231.0,3.0]
[1755810198777,7.499,4232.3,4230.8,2.38356597]
[1755810198778,7.499,4232.3,4232.2,0.2922]
[1755810198985,5.967,4232.3,4232.2,0.732]
[1755810199183,5.967,4232.3,4230.8,0.02]
[1755810199184,24.14027925,4232.3,4230.8,0.02]
[1755810199389,17.27117925,4231.7,4230.8,0.02]
[1755810199566,4.152,4231.6,4230.8,0.02]
[1755810199764,1.818,4231.5,4230.9,2.38719893]
[1755810200093,4.152,4231.4,4230.9,2.3635633]
[1755810200279,4.152,4231.4,4231.3,0.2922]
[1755810200802,4.152,4231.4,4230.9,2.36355771]
[1755810200985,4.152,4231.4,4230.8,2.38361429]
[1755810201188,4.152,4231.4,4230.8,0.024]
[1755810201560,4.152,4231.4,4230.9,2.36354921]
[1755810201797,4.152,4231.4,4230.8,2.38761608]
[1755810201972,4.152,4231.4,4230.8,2.38761143]
[1755810202161,4.152,4231.4,4230.8,0.024]
[1755810202510,4.152,4231.4,4230.9,2.36356256]
[1755810202695,4.152,4231.4,4230.8,0.024]
[1755810203110,0.3054,4230.9,4230.8,0.024]
[1755810203394,21.72257925,4230.9,4230.8,0.024]
[1755810203695,22.19457925,4230.9,4230.8,0.024]
[1755810204298,4.4514,4230.9,4230.8,0.024]
[1755810204608,4.9234,4230.9,4230.8,0.024]
[1755810204764,7.14285793,4230.9,4230.8,0.024]
[1755810205505,0.66,4230.7,4229.8,0.02]
[1755810205709,17.57657925,4229.9,4228.2,0.710994]
[1755810205923,17.27117925,4229.2,4228.2,0.710994]
[1755810206064,6.438,4229.8,4227.7,0.4398]
[1755810206065,0.3054,4228.9,4227.7,0.4398]
[1755810206267,5.966,4228.9,4227.8,2.38526853]
[1755810206472,6.2714,4228.9,4227.8,3.02]
[1755810206672,6.7434,4228.9,4227.8,0.02]
[1755810207683,17.27117925,4228.3,4227.8,0.02]
[1755810207884,4.147,4228.2,4227.8,0.02]
[1755810208096,0.3054,4227.9,4227.8,0.02]
[1755810208296,4.146,4227.9,4227.8,0.02]
[1755810208497,4.146,4227.9,4227.8,0.3122]
[1755810209421,0.472,4229.5,4227.8,3.3122]
[1755810209705,17.27117925,4228.5,4227.8,0.02]
[1755810209911,0.3054,4227.9,4227.8,0.02]
[1755810210117,21.73857925,4227.9,4227.8,0.02]
[1755810210492,22.21057925,4227.9,4227.8,0.02]
[1755810211813,22.21057925,4227.9,4226.8,0.02]
[1755810211814,52.21057925,4227.9,4226.8,0.02]
[1755810211986,17.27117925,4227.0,4226.8,0.02]
[1755810212190,4.4654,4226.9,4226.8,0.02]
[1755810212901,4.16,4226.9,4226.8,0.02]
[1755810213776,4.4654,4226.9,4226.8,0.02]
[1755810213978,4.9374,4226.9,4226.8,0.02]
[1755810214202,5.61304,4226.9,4226.8,0.02]
[1755810217824,5.61304,4226.9,4226.8,0.024]
[1755810218879,1.45304,4226.9,4226.8,0.024]
[1755810219119,1.819,4227.0,4226.8,0.024]
[1755810219416,4.4481,4226.9,4226.8,0.024]
[1755810219616,4.151,4226.9,4226.8,0.024]
[1755810219922,4.9216,4226.9,4226.8,0.024]
[1755810220490,21.71927925,4226.9,4226.8,0.024]
[1755810220712,24.07310718,4226.9,4226.8,0.024]
[1755810220900,24.54660718,4226.9,4226.8,0.024]
[1755810223296,24.07310718,4226.9,4226.8,0.024]
[1755810224424,4.151,4226.9,4226.8,0.3193]
[1755810225059,1.819,4227.0,4226.8,0.3193]
[1755810225316,4.15,4226.9,4226.8,0.755]
[1755810225522,4.15,4227.1,4226.9,0.4357]
[1755810225680,7.505,4227.8,4226.9,0.4357]
[1755810225883,4.9005,4227.7,4227.0,0.2953]
[1755810227017,4.15,4227.7,4227.0,0.2953]
[1755810227918,7.505,4227.8,4227.0,0.2953]
[1755810228225,4.15,4227.7,4227.0,0.2953]
[1755810231547,21.42117925,4227.7,4227.0,0.2953]
[1755810232111,21.42117925,4227.7,4227.0,0.1953]
[1755810232343,2.36213963,4227.6,4227.0,0.1953]
[1755810232562,4.15,4227.5,4227.0,0.1953]
[1755810237027,0.2971,4227.1,4226.8,0.024]
[1755810237230,4.15,4227.0,4226.8,0.024]
[1755810237455,4.15,4227.0,4226.9,0.2953]
[1755810239217,7.506,4227.8,4226.9,0.2953]
[1755810239218,4.15,4227.1,4226.9,0.731]
[1755810239420,7.506,4227.8,4227.0,0.45935744]
[1755810239664,4.6576828,4227.7,4227.0,0.45935744]
[1755810239829,4.15,4227.7,4226.8,0.024]
[1755810240035,0.98119368,4227.6,4226.8,0.024]
[1755810240431,0.50769368,4227.6,4227.5,0.2953]
[1755810240643,1.821,4227.8,4227.5,0.2953]
[1755810240644,0.001,4227.8,4227.5,0.2953]
[1755810240844,0.001,4227.8,4227.6,0.45935408]
[1755810241164,0.001,4227.8,4227.7,3.31895352]
[1755810241334,0.001,4227.8,4227.7,0.2953]
[1755810241530,0.001,4227.8,4227.7,0.731]
[1755810241751,0.001,4227.8,4227.7,6.09635231]
[1755810242060,0.001,4227.8,4227.7,3.731]
[1755810242256,0.001,4227.8,4227.7,3.2953]
[1755810242960,0.001,4227.8,4227.7,4.06053]
[1755810243165,0.001,4227.8,4227.7,6.42588231]
[1755810244362,0.001,4227.8,4227.7,4.06053]
[1755810244530,0.2981,4227.8,4227.7,3.0]
[1755810244729,0.001,4227.8,4227.7,3.0]
[1755810245124,0.7716,4227.8,4226.8,0.024]
[1755810245345,17.27117925,4227.4,4226.8,0.024]
[1755810245551,1.72711793,4227.3,4226.8,0.024]
[1755810245725,4.149,4227.2,4226.8,0.024]
[1755810246657,0.2971,4226.9,4226.8,0.024]
[1755810247169,0.7706,4226.9,4226.8,0.024]
[1755810247523,0.2971,4226.9,4226.8,0.024]
[1755810247728,1.82,4227.3,4226.8,0.3191]
[1755810247924,4.149,4227.0,4226.8,0.3191]
[1755810248340,4.149,4227.0,4226.8,0.024]
[1755810249768,0.7525,4226.9,4226.8,0.024]
[1755810259675,0.751478,4226.9,4226.8,0.024]
[1755810260372,2.96864373,4226.9,4226.8,0.024]
[1755810262788,2.53194373,4226.9,4226.8,0.024]
[1755810262943,6.67994373,4226.9,4226.8,0.024]
[1755810263144,6.36516573,4226.9,4226.8,0.024]
[1755810264396,4.148,4226.9,4226.8,0.3191]
[1755810264560,4.9005,4226.9,4226.8,0.024]
[1755810264759,4.9005,4226.9,4225.8,0.02]
[1755810265061,17.27117925,4226.3,4225.8,0.02]
[1755810265254,7.69611793,4226.2,4225.8,0.02]
[1755810266083,7.69611793,4226.2,4226.1,0.2951]
[1755810266279,7.69611793,4226.2,4225.8,0.02]
[1755810266715,3.54811793,4226.2,4225.8,0.02]
[1755810267014,4.148,4226.1,4225.9,0.4423]
[1755810267176,4.148,4226.1,4226.0,0.7374]
[1755810268102,4.148,4226.1,4225.8,0.02]
[1755810268504,4.148,4226.1,4226.0,0.2951]
[1755810269104,4.148,4226.1,4225.8,0.02]
[1755810269105,4.4638,4226.1,4225.8,0.02]
[1755810269418,4.44949621,4226.1,4225.8,0.024]
[1755810271087,17.58697925,4225.9,4224.8,0.02]
[1755810271301,17.27117925,4225.2,4224.8,0.02]
[1755810271487,0.3158,4224.9,4224.8,0.02]
[1755810271700,4.4628,4224.9,4224.8,0.02]
[1755810272004,7.26163963,4224.9,4224.8,0.02]
[1755810273210,2.67793963,4224.9,4224.8,0.02]
[1755810273383,4.4628,4224.9,4224.8,0.02]
[1755810273933,17.27117925,4223.9,4223.8,0.02]
[1755810274080,23.55497925,4223.9,4223.8,0.02]
[1755810274280,23.99167925,4223.9,4223.8,0.02]
[1755810274706,23.55497925,4223.9,4223.8,0.02]
[1755810274911,5.968,4223.9,4223.8,0.3151]
[1755810276519,5.968,4223.9,4223.8,0.02]
[1755810277226,5.968,4223.9,4223.8,0.3151]
[1755810278092,5.968,4223.9,4223.8,0.02]
[1755810279793,24.69557925,4223.9,4223.8,0.02]
[1755810280014,25.16127925,4223.9,4223.8,0.02]
[1755810280585,7.4244,4223.9,4223.8,0.02]
[1755810281422,7.8901,4223.9,4223.8,0.02]
[1755810281902,7.4244,4223.9,4223.8,0.02]
[1755810282087,7.8901,4223.9,4223.8,0.02]
[1755810282425,7.8901,4223.9,4222.8,0.02]
[1755810282589,17.27117925,4223.1,4222.8,0.02]
[1755810282788,5.968,4223.0,4222.8,0.02]
[1755810283624,5.968,4223.0,4222.9,0.004]
[1755810285190,6.2585,4223.0,4222.9,0.004]
[1755810286518,5.968,4223.0,4222.9,0.004]
[1755810287298,8.31801622,4223.0,4222.9,0.004]
[1755810289043,5.968,4223.0,4222.9,0.3013]
[1755810290595,5.968,4223.0,4222.9,0.7527]
[1755810291326,5.968,4223.0,4222.9,0.3013]
[1755810291528,6.7242,4223.0,4222.9,0.004]
[1755810291718,7.39662,4223.0,4222.9,0.004]
[1755810293026,24.66779925,4223.0,4222.9,0.004]
[1755810293428,24.66779925,4223.0,4221.8,0.02]
[1755810293628,17.27117925,4221.9,4221.8,0.02]
[1755810293815,23.53067925,4221.9,4221.8,0.02]
[1755810294004,25.59324718,4221.9,4221.8,0.02]
[1755810294211,5.969,4221.9,4221.8,0.02]
[1755810294798,1.822,4221.9,4221.8,0.3173]
[1755810295011,5.968,4221.9,4221.8,0.02]
[1755810295216,6.2585,4221.9,4221.8,0.02]
[1755810295531,5.968,4221.9,4221.8,0.3173]
[1755810296632,5.968,4221.9,4221.8,0.02]
[1755810297651,5.968,4221.9,4221.8,0.3173]
[1755810298231,5.968,4221.9,4221.8,3.13735791]
[1755810298232,1.822,4221.9,4221.8,3.13735791]
[1755810298444,5.968,4221.9,4221.8,3.7687]
[1755810298625,4.146,4221.9,4221.8,3.7687]
[1755810298801,1.822,4222.5,4221.9,3.0]
[1755810299002,1.822,4222.5,4222.4,0.2973]
[1755810299224,5.968,4222.5,4222.4,0.2973]
[1755810299432,1.822,4222.5,4222.4,0.2973]
[1755810299611,5.968,4222.5,4222.4,0.2973]
[1755810299815,5.968,4222.5,4221.8,0.02]
[1755810299816,5.968,4222.5,4221.8,5.38864824]
[1755810300101,1.822,4222.5,4222.4,0.2973]
[1755810300306,1.822,4223.1,4222.8,2.36805797]
[1755810300509,4.146,4223.0,4222.9,3.4514]
[1755810300702,1.822,4223.7,4223.3,2.36780009]
[1755810300908,1.822,4223.7,4223.6,0.2973]
[1755810301105,1.822,4223.7,4223.6,3.2973]
[1755810301418,0.02,4223.8,4223.7,5.36759239]
[1755810301620,0.02,4223.8,4223.7,6.77629239]
[1755810303449,0.001,4224.3,4223.7,6.77629239]
[1755810303450,0.001,4224.3,4224.2,3.02731215]
[1755810303734,0.001,4224.3,4224.2,6.32461215]
[1755810304126,0.02,4224.8,4224.5,0.66]
[1755810304302,1e-08,4224.7,4224.6,6.756388]
[1755810304507,1e-08,4224.7,4224.6,7.207788]
[1755810305010,1e-08,4224.7,4224.6,3.756388]
[1755810305202,1e-08,4224.7,4224.6,3.324388]
[1755810305738,1e-08,4224.7,4224.6,6.324388]
[1755810306438,1e-08,4224.7,4224.6,6.775788]
[1755810307759,1.822,4226.3,4225.7,2.36647182]
[1755810307940,4.145,4226.4,4225.7,5.69833653]
[1755810308120,1.822,4226.9,4225.7,7.87666058]
[1755810308430,0.001,4227.0,4225.7,7.87666058]
[1755810308620,0.001,4227.0,4225.7,12.02066058]
[1755810309664,0.001,4227.0,4225.7,7.44116058]
[1755810309961,0.4312,4226.4,4225.7,3.0]
[1755810310165,0.4312,4226.1,4225.7,3.0]
[1755810310316,4.5752,4226.4,4225.7,3.0]
[1755810310742,1.842,4226.8,4225.7,3.0]
[1755810310953,1.842,4226.8,4223.7,0.094891]
[1755810310954,4.8924,4225.8,4223.7,0.094891]
[1755810311151,4.8924,4225.8,4224.2,2.36727357]
[1755810311152,0.4312,4225.7,4224.2,2.36727357]
[1755810311733,0.4312,4225.7,4224.3,2.36725295]
[1755810311928,0.4312,4225.7,4224.4,3.0]
[1755810312150,4.143,4225.6,4224.7,2.36702827]
[1755810312327,0.4312,4225.7,4224.9,0.66]
[1755810312532,4.143,4225.7,4225.1,2.36675267]
[1755810312950,4.143,4225.7,4224.7,0.66]
[1755810313254,0.02,4225.8,4225.2,0.66]
[1755810313455,0.02,4225.8,4225.7,5.36647182]
[1755810313626,0.02,4225.8,4225.7,2.36647182]
[1755810314128,0.02,4225.8,4225.7,6.33467182]
[1755810315277,0.02,4225.8,4225.7,6.77017182]
[1755810315436,0.02,4225.8,4225.7,7.75499363]
[1755810315637,0.02,4225.8,4225.7,7.87339363]
[1755810316033,1e-08,4225.8,4225.7,7.87339363]
[1755810317062,1e-08,4225.8,4225.7,12.01539363]
[1755810319583,1e-08,4225.8,4225.7,14.51339363]
[1755810320279,1e-08,4225.8,4225.7,7.87339363]
[1755810320446,1e-08,4225.8,4225.7,12.10922563]
[1755810322446,1e-08,4225.8,4225.7,11.67372563]
[1755810323078,1e-08,4225.8,4225.7,11.85060647]
[1755810323467,1e-08,4225.8,4225.7,11.84960647]
[1755810324850,1e-08,4225.8,4225.7,7.70960647]
[1755810325057,1e-08,4225.8,4225.7,11.84960647]
[1755810325448,1e-08,4225.8,4225.7,12.28510647]
[1755810325984,1e-08,4225.8,4225.7,7.70960647]
[1755810326279,0.72840001,4225.8,4225.7,6.77818466]
[1755810326493,0.72840001,4225.8,4225.7,10.43818466]
[1755810327185,0.72840001,4225.8,4225.7,6.77718466]
[1755810327354,0.72840001,4225.8,4225.7,10.43718466]
[1755810327678,0.72840001,4225.8,4225.7,2.46130382]
[1755810328196,0.72840001,4225.8,4225.7,6.12130382]
[1755810328951,0.72840001,4225.8,4225.7,5.36647182]
[1755810329648,0.72840001,4225.8,4225.3,4.139]
[1755810329944,0.4312,4225.7,4225.6,2.36652783]
[1755810330295,0.7284,4225.7,4225.6,2.36652783]
[1755810330897,0.7284,4225.7,4225.4,5.36663085]
[1755810330898,0.7284,4225.7,4225.4,2.36659351]
[1755810331093,0.2972,4225.7,4225.4,2.36659351]
[1755810331297,0.4312,4225.6,4225.5,2.36658383]
[1755810331502,0.7284,4225.6,4225.5,2.36658383]
[1755810332281,0.2972,4225.6,4225.5,2.36658383]
[1755810333805,0.7284,4225.6,4225.3,3.0]
[1755810334023,0.4312,4225.5,4225.3,3.0]
[1755810334168,0.2972,4225.4,4224.8,3.004]
[1755810334518,0.4312,4225.3,4224.8,3.03096733]
[1755810334810,0.2972,4224.9,4224.8,0.004]
[1755810334973,0.2972,4224.9,4224.8,2.37097595]
[1755810335323,0.4312,4225.3,4225.1,2.36679948]
[1755810335502,0.2972,4225.2,4225.0,3.0]
[1755810335831,0.2972,4225.2,4224.8,0.004]
[1755810335832,0.4312,4225.1,4224.9,2.36690101]
[1755810336038,0.2972,4225.0,4224.8,0.664]
[1755810336324,0.4312,4224.9,4224.8,0.664]
[1755810336529,0.7284,4224.9,4224.8,3.03097595]
[1755810337717,0.7345,4224.9,4224.8,0.004]
[1755810346450,0.2972,4224.9,4224.8,0.004]
[1755810346652,4.138,4225.2,4225.0,2.36685636]
[1755810346840,0.4373,4225.5,4224.8,0.004]
[1755810347029,1e-08,4225.8,4225.2,0.66]
[1755810347030,1.82100001,4225.8,4225.2,0.66]
[1755810347231,1e-08,4225.8,4225.7,5.65887182]
[1755810347433,1e-08,4225.8,4225.7,6.46141359]
[1755810348059,1e-08,4225.8,4225.7,7.58511359]
[1755810352256,0.001,4226.3,4226.2,3.02619185]
[1755810352257,1e-08,4226.3,4226.2,3.02619185]
[1755810352459,0.001,4227.0,4226.6,3.02596791]
[1755810352663,0.001,4227.0,4226.6,10.45536791]
[1755810352955,0.001,4227.0,4226.6,10.91906791]
[1755810353335,0.3114,4226.7,4226.6,3.66]
[1755810353561,0.001,4226.7,4226.6,3.0]
[1755810353865,0.001,4226.7,4226.6,5.36596791]
[1755810354861,0.001,4226.7,4226.6,6.79917219]
[1755810355597,0.001,4226.7,4226.6,7.23747219]
[1755810356363,0.001,4226.7,4226.6,7.52987219]
[1755810357068,0.001,4226.7,4226.6,8.11197219]
[1755810357569,1e-08,4226.8,4226.7,6.02591194]
[1755810357769,1e-08,4226.8,4226.7,8.47527233]
[1755810358076,1e-08,4226.8,4226.7,8.59367233]
[1755810358769,0.021,4227.8,4227.7,6.02535231]
[1755810359066,0.021,4227.8,4227.7,10.45275231]
[1755810359266,0.021,4227.8,4227.7,11.25529408]
[1755810359566,0.3314,4227.8,4227.7,7.795]